[Event "Titled Tuesday Blitz November 14 Early 2023"]
[White "Aradhya, Garg"]
[Black "Morgunov, Marc"]
[WhiteFideId "25006746"]
[BlackFideId "1640305"]
[WhiteElo "2735"]
[BlackElo "2490"]
[Result "1-0"]
[Round "5"]
[TimeControl "180+1"]
[Date "2023.11.14"]
[WhiteClock "0:00:25"]
[BlackClock "0:00:00"]
[Board "87"]

1. d4 {[%clk 0:03:00]}  Nf6 {[%clk 0:02:59]} 2. c4 {[%clk 0:03:01]}  g6 {[%clk 0:02:57]} 3. g3 {[%clk 0:03:01]}  Bg7 {[%clk 0:02:57]} 4. Bg2 {[%clk 0:03:02]}  O-O {[%clk 0:02:58]} 5. Nc3 {[%clk 0:03:02]}  d6 {[%clk 0:02:58]} 6. Nf3 {[%clk 0:03:02]}  Nc6 {[%clk 0:02:59]} 7. O-O {[%clk 0:03:02]}  e5 {[%clk 0:03:00]} 8. dxe5 {[%clk 0:03:03]}  dxe5 {[%clk 0:03:00]} 9. Bg5 {[%clk 0:02:59]}  h6 {[%clk 0:03:00]} 10. Qxd8 {[%clk 0:02:57]}  Rxd8 {[%clk 0:03:01]} 11. Bxf6 {[%clk 0:02:56]}  Bxf6 {[%clk 0:03:02]} 12. Nd5 {[%clk 0:02:57]}  Kg7 {[%clk 0:02:59]} 13. Nxc7 {[%clk 0:02:57]}  Rb8 {[%clk 0:02:59]} 14. e4 {[%clk 0:02:57]}  Be7 {[%clk 0:02:59]} 15. Nd5 {[%clk 0:02:56]}  Bc5 {[%clk 0:02:57]} 16. a3 {[%clk 0:02:53]}  a5 {[%clk 0:02:56]} 17. Rab1 {[%clk 0:02:45]}  b5 {[%clk 0:02:35]} 18. b4 {[%clk 0:02:43]}  axb4 {[%clk 0:02:27]} 19. axb4 {[%clk 0:02:43]}  Bd4 {[%clk 0:02:27]} 20. Rfc1 {[%clk 0:02:37]}  bxc4 {[%clk 0:02:02]} 21. Rxc4 {[%clk 0:02:33]}  Rd6 {[%clk 0:02:02]} 22. Nxd4 {[%clk 0:01:53]}  Nxd4 {[%clk 0:02:02]} 23. f4 {[%clk 0:01:53]}  Ba6 {[%clk 0:01:51]} 24. Rc7 {[%clk 0:01:42]}  Bd3 {[%clk 0:01:25]} 25. Rd1 {[%clk 0:01:39]}  Nb5 {[%clk 0:01:02]} 26. Rc5 {[%clk 0:01:11]}  Be2 {[%clk 0:00:52]} 27. Rd2 {[%clk 0:01:10]}  Bg4 {[%clk 0:00:47]} 28. fxe5 {[%clk 0:01:10]}  Rdd8 {[%clk 0:00:38]} 29. Bf1 {[%clk 0:01:06]}  Na3 {[%clk 0:00:19]} 30. Ra2 {[%clk 0:00:56]}  Nb1 {[%clk 0:00:19]} 31. Rc1 {[%clk 0:00:52]}  Bf3 {[%clk 0:00:09]} 32. Bd3 {[%clk 0:00:41]}  Rxd5 {[%clk 0:00:06]} 33. exd5 {[%clk 0:00:40]}  Rxb4 {[%clk 0:00:02]} 34. Rxb1 {[%clk 0:00:39]}  Rd4 {[%clk 0:00:03]} 35. Rd2 {[%clk 0:00:37]}  Bxd5 {[%clk 0:00:03]} 36. Rbb2 {[%clk 0:00:36]}  Be6 {[%clk 0:00:03]} 37. Kf2 {[%clk 0:00:35]}  Rd5 {[%clk 0:00:03]} 38. Bxg6 {[%clk 0:00:27]}  Rxd2+ {[%clk 0:00:03]} 39. Rxd2 {[%clk 0:00:28]}  Kxg6 {[%clk 0:00:04]} 40. Ke3 {[%clk 0:00:28]}  Kf5 {[%clk 0:00:04]} 41. Kd4 {[%clk 0:00:28]}  h5 {[%clk 0:00:05]} 42. Rf2+ {[%clk 0:00:28]}  Kg6 {[%clk 0:00:02]} 43. h4 {[%clk 0:00:26]}  Bb3 {[%clk 0:00:01]} 44. Kc5 {[%clk 0:00:25]}  Kg7 {[%clk 0:00:01]} 45. Kd6 {[%clk 0:00:25]}  Ba2 {[%clk 0:00:00]} 46. Ke7 {[%clk 0:00:25]} 1-0


[Site "https://www.chess.com"]

[Event "Titled Tuesday Blitz November 14 Early 2023"]
[White "Akhmedinov, Satbek"]
[Black "Manukyan, Sargis V."]
[WhiteFideId "13714287"]
[BlackFideId "13303465"]
[WhiteElo "2677"]
[BlackElo "2475"]
[Result "1-0"]
[Round "5"]
[TimeControl "180+1"]
[Date "2023.11.14"]
[WhiteClock "0:01:48"]
[BlackClock "0:00:02"]
[Board "94"]

1. e4 {[%clk 0:03:00]}  e6 {[%clk 0:03:00]} 2. d4 {[%clk 0:03:00]}  d5 {[%clk 0:03:00]} 3. Nd2 {[%clk 0:03:01]}  Nc6 {[%clk 0:02:59]} 4. Ngf3 {[%clk 0:03:01]}  Nf6 {[%clk 0:02:57]} 5. e5 {[%clk 0:03:01]}  Nd7 {[%clk 0:02:57]} 6. Bb5 {[%clk 0:03:00]}  a6 {[%clk 0:02:57]} 7. Bxc6 {[%clk 0:02:54]}  bxc6 {[%clk 0:02:58]} 8. O-O {[%clk 0:02:55]}  c5 {[%clk 0:02:57]} 9. c3 {[%clk 0:02:55]}  cxd4 {[%clk 0:02:57]} 10. cxd4 {[%clk 0:02:56]}  c5 {[%clk 0:02:58]} 11. Nb3 {[%clk 0:02:56]}  a5 {[%clk 0:02:45]} 12. Bg5 {[%clk 0:02:55]}  Qb6 {[%clk 0:02:42]} 13. dxc5 {[%clk 0:02:53]}  Nxc5 {[%clk 0:02:41]} 14. Rc1 {[%clk 0:02:49]}  Ba6 {[%clk 0:02:34]} 15. Be3 {[%clk 0:02:31]}  Rc8 {[%clk 0:02:16]} 16. Re1 {[%clk 0:02:23]}  Bc4 {[%clk 0:01:52]} 17. Nxc5 {[%clk 0:02:22]}  Bxc5 {[%clk 0:01:52]} 18. Qa4+ {[%clk 0:02:16]}  Ke7 {[%clk 0:01:30]} 19. Bg5+ {[%clk 0:02:13]}  Kf8 {[%clk 0:01:24]} 20. Qc2 {[%clk 0:02:07]}  h6 {[%clk 0:01:10]} 21. Bh4 {[%clk 0:02:05]}  Bxa2 {[%clk 0:01:07]} 22. b4 {[%clk 0:02:04]}  axb4 {[%clk 0:00:31]} 23. Qxa2 {[%clk 0:02:03]}  g5 {[%clk 0:00:32]} 24. Bg3 {[%clk 0:02:01]}  Kg7 {[%clk 0:00:32]} 25. h4 {[%clk 0:01:58]}  g4 {[%clk 0:00:25]} 26. Nd2 {[%clk 0:01:58]}  Ra8 {[%clk 0:00:18]} 27. Qc2 {[%clk 0:01:55]}  Rhc8 {[%clk 0:00:18]} 28. Nb3 {[%clk 0:01:54]}  Be7 {[%clk 0:00:14]} 29. Qxc8 {[%clk 0:01:54]}  Rxc8 {[%clk 0:00:15]} 30. Rxc8 {[%clk 0:01:55]}  Qa6 {[%clk 0:00:13]} 31. Re8 {[%clk 0:01:54]}  Qc4 {[%clk 0:00:09]} 32. Rxe7 {[%clk 0:01:52]}  Qxb3 {[%clk 0:00:09]} 33. Re3 {[%clk 0:01:52]}  Qd1+ {[%clk 0:00:08]} 34. Kh2 {[%clk 0:01:53]}  d4 {[%clk 0:00:07]} 35. Rd7 {[%clk 0:01:51]}  b3 {[%clk 0:00:05]} 36. Re4 {[%clk 0:01:50]}  d3 {[%clk 0:00:05]} 37. Rf4 {[%clk 0:01:50]}  b2 {[%clk 0:00:05]} 38. h5 {[%clk 0:01:46]}  b1=Q {[%clk 0:00:01]} 39. Rdxf7+ {[%clk 0:01:46]}  Kg8 {[%clk 0:00:02]} 40. Rf8+ {[%clk 0:01:47]}  Kg7 {[%clk 0:00:02]} 41. R4f7# {[%clk 0:01:48]} 1-0


[Site "https://www.chess.com"]

[Event "Titled Tuesday Blitz November 14 Early 2023"]
[White "Kassimov, Baurzhan"]
[Black "Kamalidenova, Meruert"]
[WhiteFideId "13704800"]
[BlackFideId "13712802"]
[WhiteElo "2461"]
[BlackElo "2640"]
[Result "0-1"]
[Round "5"]
[TimeControl "180+1"]
[Date "2023.11.14"]
[WhiteClock "0:00:00"]
[BlackClock "0:00:14"]
[Board "99"]

1. c4 {[%clk 0:03:00]}  Nf6 {[%clk 0:02:59]} 2. Nc3 {[%clk 0:03:00]}  e5 {[%clk 0:02:59]} 3. Nf3 {[%clk 0:02:59]}  Nc6 {[%clk 0:02:58]} 4. e3 {[%clk 0:02:59]}  Bb4 {[%clk 0:02:57]} 5. Qc2 {[%clk 0:02:59]}  Bxc3 {[%clk 0:02:54]} 6. Qxc3 {[%clk 0:03:00]}  d6 {[%clk 0:02:51]} 7. d4 {[%clk 0:02:54]}  exd4 {[%clk 0:02:48]} 8. Nxd4 {[%clk 0:02:53]}  O-O {[%clk 0:02:45]} 9. Be2 {[%clk 0:02:43]}  Ne4 {[%clk 0:02:38]} 10. Qc2 {[%clk 0:02:43]}  Re8 {[%clk 0:02:31]} 11. Nxc6 {[%clk 0:02:33]}  bxc6 {[%clk 0:02:29]} 12. O-O {[%clk 0:02:33]}  Rb8 {[%clk 0:02:18]} 13. b3 {[%clk 0:02:17]}  c5 {[%clk 0:02:09]} 14. Bb2 {[%clk 0:02:15]}  a5 {[%clk 0:02:09]} 15. f3 {[%clk 0:02:13]}  Nf6 {[%clk 0:02:07]} 16. e4 {[%clk 0:02:13]}  Bd7 {[%clk 0:02:04]} 17. a4 {[%clk 0:02:07]}  Qe7 {[%clk 0:01:53]} 18. Bc3 {[%clk 0:02:05]}  Ra8 {[%clk 0:01:51]} 19. Qd2 {[%clk 0:02:04]}  Reb8 {[%clk 0:01:51]} 20. Rab1 {[%clk 0:01:59]}  c6 {[%clk 0:01:48]} 21. Bxa5 {[%clk 0:01:58]}  d5 {[%clk 0:01:48]} 22. cxd5 {[%clk 0:01:34]}  cxd5 {[%clk 0:01:47]} 23. Bc7 {[%clk 0:01:22]}  Re8 {[%clk 0:01:26]} 24. e5 {[%clk 0:01:20]}  Rac8 {[%clk 0:01:22]} 25. Bd6 {[%clk 0:01:14]}  Qe6 {[%clk 0:01:20]} 26. Bd3 {[%clk 0:01:09]}  d4 {[%clk 0:01:07]} 27. f4 {[%clk 0:00:58]}  Ng4 {[%clk 0:00:50]} 28. f5 {[%clk 0:00:54]}  Qd5 {[%clk 0:00:46]} 29. Qg5 {[%clk 0:00:54]}  Nxe5 {[%clk 0:00:40]} 30. f6 {[%clk 0:00:40]}  Nf3+ {[%clk 0:00:40]} 31. Rxf3 {[%clk 0:00:30]}  Qxg5 {[%clk 0:00:40]} 32. Rbf1 {[%clk 0:00:27]}  Qd5 {[%clk 0:00:30]} 33. Be7 {[%clk 0:00:10]}  Be6 {[%clk 0:00:24]} 34. Rg3 {[%clk 0:00:05]}  g6 {[%clk 0:00:22]} 35. Bc4 {[%clk 0:00:04]}  Qd7 {[%clk 0:00:21]} 36. Bb5 {[%clk 0:00:04]}  Qd5 {[%clk 0:00:18]} 37. Bxe8 {[%clk 0:00:03]}  Rxe8 {[%clk 0:00:19]} 38. a5 {[%clk 0:00:03]}  d3 {[%clk 0:00:19]} 39. a6 {[%clk 0:00:03]}  d2 {[%clk 0:00:18]} 40. Rd1 {[%clk 0:00:04]}  Ra8 {[%clk 0:00:14]} 41. Rc3 {[%clk 0:00:00]}  Qd4+ {[%clk 0:00:14]} 0-1


[Site "https://www.chess.com"]

[Event "Titled Tuesday Blitz November 14 Early 2023"]
[White "UNSTOPPABLE_LEGEND"]
[Black "Degenbaev, Aziz"]
[BlackFideId "13802640"]
[WhiteElo "2458"]
[BlackElo "2638"]
[Result "1-0"]
[Round "5"]
[TimeControl "180+1"]
[Date "2023.11.14"]
[WhiteClock "0:00:07"]
[BlackClock "0:00:07"]
[Board "101"]

1. e4 {[%clk 0:03:00]}  e6 {[%clk 0:02:57]} 2. d4 {[%clk 0:03:00]}  d5 {[%clk 0:02:58]} 3. e5 {[%clk 0:03:01]}  c5 {[%clk 0:02:58]} 4. c3 {[%clk 0:03:01]}  Nc6 {[%clk 0:02:59]} 5. Nf3 {[%clk 0:03:01]}  f6 {[%clk 0:02:59]} 6. Bb5 {[%clk 0:02:54]}  a6 {[%clk 0:02:52]} 7. Bxc6+ {[%clk 0:02:54]}  bxc6 {[%clk 0:02:53]} 8. O-O {[%clk 0:02:55]}  f5 {[%clk 0:02:51]} 9. Be3 {[%clk 0:02:39]}  cxd4 {[%clk 0:02:39]} 10. cxd4 {[%clk 0:02:37]}  a5 {[%clk 0:02:39]} 11. Nc3 {[%clk 0:02:28]}  Ne7 {[%clk 0:02:36]} 12. Na4 {[%clk 0:02:26]}  Ng6 {[%clk 0:02:34]} 13. Rc1 {[%clk 0:02:25]}  Bd7 {[%clk 0:02:26]} 14. Nc5 {[%clk 0:02:24]}  Bxc5 {[%clk 0:02:26]} 15. Rxc5 {[%clk 0:02:25]}  O-O {[%clk 0:02:26]} 16. Qc2 {[%clk 0:02:25]}  f4 {[%clk 0:02:21]} 17. Bd2 {[%clk 0:02:24]}  Be8 {[%clk 0:02:21]} 18. Qa4 {[%clk 0:02:21]}  Nh4 {[%clk 0:02:20]} 19. Nxh4 {[%clk 0:02:15]}  Qxh4 {[%clk 0:02:21]} 20. f3 {[%clk 0:02:16]}  Rb8 {[%clk 0:02:08]} 21. b3 {[%clk 0:02:14]}  Rf5 {[%clk 0:02:09]} 22. Be1 {[%clk 0:02:10]}  Qh6 {[%clk 0:01:59]} 23. Qxa5 {[%clk 0:02:09]}  Rh5 {[%clk 0:01:59]} 24. h3 {[%clk 0:01:39]}  Bg6 {[%clk 0:01:24]} 25. Rxc6 {[%clk 0:01:31]}  Bf5 {[%clk 0:01:19]} 26. Qc7 {[%clk 0:01:08]}  Rf8 {[%clk 0:01:17]} 27. Bb4 {[%clk 0:00:23]}  Rg5 {[%clk 0:00:25]} 28. Qe7 {[%clk 0:00:14]}  Rxg2+ {[%clk 0:00:21]} 29. Kxg2 {[%clk 0:00:13]}  Qxh3+ {[%clk 0:00:18]} 30. Kf2 {[%clk 0:00:13]}  Qg3+ {[%clk 0:00:09]} 31. Ke2 {[%clk 0:00:13]}  Ra8 {[%clk 0:00:06]} 32. a4 {[%clk 0:00:08]}  Qg2+ {[%clk 0:00:07]} 33. Rf2 {[%clk 0:00:08]}  Bd3+ {[%clk 0:00:07]} 34. Kxd3 {[%clk 0:00:05]}  Qxf2 {[%clk 0:00:07]} 35. Qxe6+ {[%clk 0:00:06]}  Kh8 {[%clk 0:00:07]} 36. Rc8+ {[%clk 0:00:06]}  Rxc8 {[%clk 0:00:07]} 37. Qxc8# {[%clk 0:00:07]} 1-0


[Site "https://www.chess.com"]

[Event "Titled Tuesday Blitz November 14 Early 2023"]
[White "WindWhistler11"]
[Black "Fromm, Marius"]
[BlackFideId "12993190"]
[WhiteElo "2456"]
[BlackElo "2628"]
[Result "0-1"]
[Round "5"]
[TimeControl "180+1"]
[Date "2023.11.14"]
[WhiteClock "0:00:00"]
[BlackClock "0:00:22"]
[Board "103"]

1. Nf3 {[%clk 0:03:00]}  Nc6 {[%clk 0:02:55]} 2. d4 {[%clk 0:02:59]}  d5 {[%clk 0:02:55]} 3. a3 {[%clk 0:02:59]}  Bg4 {[%clk 0:02:54]} 4. Bf4 {[%clk 0:02:58]}  e6 {[%clk 0:02:54]} 5. e3 {[%clk 0:02:54]}  Bd6 {[%clk 0:02:54]} 6. Bg3 {[%clk 0:02:51]}  Nf6 {[%clk 0:02:53]} 7. Be2 {[%clk 0:02:50]}  O-O {[%clk 0:02:52]} 8. Nbd2 {[%clk 0:02:48]}  Ne7 {[%clk 0:02:52]} 9. c4 {[%clk 0:02:26]}  c6 {[%clk 0:02:29]} 10. Ne5 {[%clk 0:02:13]}  Bxe2 {[%clk 0:02:28]} 11. Qxe2 {[%clk 0:02:13]}  c5 {[%clk 0:02:14]} 12. dxc5 {[%clk 0:01:59]}  Bxc5 {[%clk 0:02:15]} 13. b4 {[%clk 0:01:52]}  Bd6 {[%clk 0:02:15]} 14. c5 {[%clk 0:01:51]}  Bc7 {[%clk 0:02:15]} 15. O-O {[%clk 0:01:48]}  Nc6 {[%clk 0:02:12]} 16. Nxc6 {[%clk 0:01:40]}  bxc6 {[%clk 0:02:12]} 17. Bh4 {[%clk 0:01:41]}  a5 {[%clk 0:01:56]} 18. Nb3 {[%clk 0:01:22]}  Be5 {[%clk 0:01:54]} 19. Rab1 {[%clk 0:01:18]}  axb4 {[%clk 0:01:52]} 20. axb4 {[%clk 0:01:18]}  Qb8 {[%clk 0:01:45]} 21. Na5 {[%clk 0:01:13]}  Rc8 {[%clk 0:01:21]} 22. Qd3 {[%clk 0:00:20]}  Bxh2+ {[%clk 0:01:17]} 23. Kh1 {[%clk 0:00:19]}  Ne4 {[%clk 0:01:01]} 24. g3 {[%clk 0:00:18]}  g5 {[%clk 0:01:00]} 25. Bxg5 {[%clk 0:00:16]}  Bxg3 {[%clk 0:00:57]} 26. fxg3 {[%clk 0:00:12]}  Nxg5 {[%clk 0:00:48]} 27. Rf4 {[%clk 0:00:07]}  Ne4 {[%clk 0:00:45]} 28. Rbf1 {[%clk 0:00:07]}  Nxg3+ {[%clk 0:00:39]} 29. Kg2 {[%clk 0:00:05]}  Nxf1 {[%clk 0:00:40]} 30. Qxf1 {[%clk 0:00:02]}  Qe5 {[%clk 0:00:38]} 31. Qf3 {[%clk 0:00:02]}  Kh8 {[%clk 0:00:34]} 32. Kh3 {[%clk 0:00:01]}  Rg8 {[%clk 0:00:28]} 33. Nxc6 {[%clk 0:00:01]}  Qg5 {[%clk 0:00:26]} 34. Rh4 {[%clk 0:00:00]}  Ra1 {[%clk 0:00:22]} 0-1


[Site "https://www.chess.com"]

[Event "Titled Tuesday Blitz November 14 Early 2023"]
[White "Janaszak, Dawid"]
[Black "Remolar Gallen, Jose"]
[WhiteFideId "1119206"]
[BlackFideId "2215187"]
[WhiteElo "2607"]
[BlackElo "2442"]
[Result "1/2-1/2"]
[Round "5"]
[TimeControl "180+1"]
[Date "2023.11.14"]
[WhiteClock "0:00:19"]
[BlackClock "0:00:14"]
[Board "108"]

1. Nf3 {[%clk 0:03:00]}  g6 {[%clk 0:02:59]} 2. e4 {[%clk 0:02:58]}  Bg7 {[%clk 0:02:59]} 3. Bc4 {[%clk 0:02:58]}  c6 {[%clk 0:02:58]} 4. Nc3 {[%clk 0:02:58]}  b5 {[%clk 0:02:56]} 5. Bb3 {[%clk 0:02:57]}  b4 {[%clk 0:02:56]} 6. Ne2 {[%clk 0:02:54]}  d5 {[%clk 0:02:56]} 7. exd5 {[%clk 0:02:50]}  cxd5 {[%clk 0:02:56]} 8. a3 {[%clk 0:02:48]}  bxa3 {[%clk 0:02:55]} 9. Rxa3 {[%clk 0:02:49]}  Nf6 {[%clk 0:02:55]} 10. O-O {[%clk 0:02:49]}  O-O {[%clk 0:02:55]} 11. d4 {[%clk 0:02:48]}  Nbd7 {[%clk 0:02:47]} 12. h3 {[%clk 0:02:40]}  Nb6 {[%clk 0:02:46]} 13. Bf4 {[%clk 0:02:38]}  a5 {[%clk 0:02:44]} 14. Qa1 {[%clk 0:02:36]}  Nc4 {[%clk 0:02:09]} 15. Bxc4 {[%clk 0:02:33]}  dxc4 {[%clk 0:02:10]} 16. Ne5 {[%clk 0:02:19]}  Bf5 {[%clk 0:01:54]} 17. c3 {[%clk 0:02:14]}  Nd5 {[%clk 0:01:48]} 18. Bh2 {[%clk 0:02:03]}  Bxe5 {[%clk 0:01:32]} 19. Bxe5 {[%clk 0:02:02]}  Bd3 {[%clk 0:01:31]} 20. Re1 {[%clk 0:02:01]}  Qb6 {[%clk 0:01:31]} 21. Nc1 {[%clk 0:01:46]}  Bf5 {[%clk 0:01:29]} 22. b4 {[%clk 0:01:43]}  cxb3 {[%clk 0:01:27]} 23. Nxb3 {[%clk 0:01:43]}  Rfc8 {[%clk 0:01:21]} 24. Nxa5 {[%clk 0:01:34]}  Nxc3 {[%clk 0:01:16]} 25. Rxc3 {[%clk 0:00:39]}  Rxc3 {[%clk 0:01:14]} 26. Qxc3 {[%clk 0:00:40]}  Qxa5 {[%clk 0:01:13]} 27. Qe3 {[%clk 0:00:38]}  Qd5 {[%clk 0:00:55]} 28. Qh6 {[%clk 0:00:36]}  f6 {[%clk 0:00:54]} 29. Bg3 {[%clk 0:00:31]}  e6 {[%clk 0:00:38]} 30. Rc1 {[%clk 0:00:23]}  e5 {[%clk 0:00:10]} 31. Rc7 {[%clk 0:00:20]}  Bd7 {[%clk 0:00:10]} 32. Qd2 {[%clk 0:00:15]}  Rc8 {[%clk 0:00:08]} 33. Rxc8+ {[%clk 0:00:13]}  Bxc8 {[%clk 0:00:09]} 34. Qc3 {[%clk 0:00:14]}  Bb7 {[%clk 0:00:09]} 35. f3 {[%clk 0:00:08]}  Qxd4+ {[%clk 0:00:09]} 36. Qxd4 {[%clk 0:00:08]}  exd4 {[%clk 0:00:10]} 37. Kf2 {[%clk 0:00:07]}  Kf7 {[%clk 0:00:10]} 38. Ke2 {[%clk 0:00:07]}  Ba6+ {[%clk 0:00:11]} 39. Kd2 {[%clk 0:00:07]}  Bf1 {[%clk 0:00:10]} 40. Bf2 {[%clk 0:00:06]}  Bxg2 {[%clk 0:00:10]} 41. Bxd4 {[%clk 0:00:06]}  Bxf3 {[%clk 0:00:10]} 42. Ke3 {[%clk 0:00:06]}  Bg2 {[%clk 0:00:10]} 43. h4 {[%clk 0:00:06]}  Bd5 {[%clk 0:00:08]} 44. Kf4 {[%clk 0:00:07]}  Ke6 {[%clk 0:00:09]} 45. Bc3 {[%clk 0:00:07]}  h6 {[%clk 0:00:09]} 46. Bd4 {[%clk 0:00:07]}  g5+ {[%clk 0:00:09]} 47. hxg5 {[%clk 0:00:08]}  hxg5+ {[%clk 0:00:09]} 48. Kg4 {[%clk 0:00:08]}  Ba2 {[%clk 0:00:10]} 49. Bc3 {[%clk 0:00:08]}  Bb3 {[%clk 0:00:11]} 50. Kg3 {[%clk 0:00:08]}  Bd1 {[%clk 0:00:11]} 51. Bd2 {[%clk 0:00:09]}  Kf5 {[%clk 0:00:11]} 52. Bc1 {[%clk 0:00:09]}  Bh5 {[%clk 0:00:11]} 53. Bd2 {[%clk 0:00:10]}  Be8 {[%clk 0:00:12]} 54. Bc1 {[%clk 0:00:10]}  Bc6 {[%clk 0:00:13]} 55. Bd2 {[%clk 0:00:10]}  Kg6 {[%clk 0:00:13]} 56. Bc1 {[%clk 0:00:10]}  f5 {[%clk 0:00:14]} 57. Be3 {[%clk 0:00:10]}  Kf6 {[%clk 0:00:10]} 58. Bd2 {[%clk 0:00:10]}  Be4 {[%clk 0:00:10]} 59. Be3 {[%clk 0:00:11]}  Bd3 {[%clk 0:00:11]} 60. Bd2 {[%clk 0:00:11]}  Be2 {[%clk 0:00:11]} 61. Be3 {[%clk 0:00:11]}  Bh5 {[%clk 0:00:11]} 62. Bd2 {[%clk 0:00:11]}  Be8 {[%clk 0:00:06]} 63. Be3 {[%clk 0:00:12]}  Bd7 {[%clk 0:00:07]} 64. Bd2 {[%clk 0:00:13]}  Kg6 {[%clk 0:00:07]} 65. Be3 {[%clk 0:00:13]}  Kh5 {[%clk 0:00:08]} 66. Bd2 {[%clk 0:00:14]}  Be6 {[%clk 0:00:09]} 67. Be3 {[%clk 0:00:14]}  Bd5 {[%clk 0:00:09]} 68. Bd2 {[%clk 0:00:15]}  Kg6 {[%clk 0:00:07]} 69. Be3 {[%clk 0:00:15]}  Kf6 {[%clk 0:00:08]} 70. Bd2 {[%clk 0:00:16]}  g4 {[%clk 0:00:08]} 71. Be3 {[%clk 0:00:15]}  Be4 {[%clk 0:00:08]} 72. Bf4 {[%clk 0:00:16]}  Ke6 {[%clk 0:00:09]} 73. Bg5 {[%clk 0:00:16]}  Kd5 {[%clk 0:00:10]} 74. Bf4 {[%clk 0:00:17]}  Kc4 {[%clk 0:00:11]} 75. Bg5 {[%clk 0:00:17]}  Kd3 {[%clk 0:00:12]} 76. Bf4 {[%clk 0:00:18]}  Ke2 {[%clk 0:00:13]} 77. Bg5 {[%clk 0:00:18]}  Kd3 {[%clk 0:00:12]} 78. Bf4 {[%clk 0:00:19]}  Ke2 {[%clk 0:00:13]} 79. Bg5 {[%clk 0:00:19]}  Kd3 {[%clk 0:00:14]} 1/2-1/2


[Site "https://www.chess.com"]

[Event "Titled Tuesday Blitz November 14 Early 2023"]
[White "Souleidis, Georgios"]
[Black "Daniel_Salinas"]
[WhiteFideId "4206827"]
[WhiteElo "2605"]
[BlackElo "2436"]
[Result "1-0"]
[Round "5"]
[TimeControl "180+1"]
[Date "2023.11.14"]
[WhiteClock "0:00:11"]
[BlackClock "0:00:03"]
[Board "109"]

1. e4 {[%clk 0:03:00]}  d6 {[%clk 0:02:37]} 2. d4 {[%clk 0:03:00]}  Nf6 {[%clk 0:02:36]} 3. Nc3 {[%clk 0:03:00]}  e5 {[%clk 0:02:30]} 4. Nf3 {[%clk 0:03:00]}  Nbd7 {[%clk 0:02:28]} 5. g3 {[%clk 0:02:59]}  Be7 {[%clk 0:02:26]} 6. Bg2 {[%clk 0:03:00]}  O-O {[%clk 0:02:27]} 7. O-O {[%clk 0:03:00]}  c6 {[%clk 0:02:27]} 8. a4 {[%clk 0:03:00]}  Qc7 {[%clk 0:02:27]} 9. Re1 {[%clk 0:02:55]}  b6 {[%clk 0:02:26]} 10. d5 {[%clk 0:02:50]}  cxd5 {[%clk 0:02:15]} 11. exd5 {[%clk 0:02:50]}  a6 {[%clk 0:02:12]} 12. Nh4 {[%clk 0:02:19]}  g6 {[%clk 0:02:06]} 13. Na2 {[%clk 0:01:38]}  Bb7 {[%clk 0:02:05]} 14. Nb4 {[%clk 0:01:30]}  Nc5 {[%clk 0:01:52]} 15. c4 {[%clk 0:01:08]}  Rfe8 {[%clk 0:01:19]} 16. Ra3 {[%clk 0:00:49]}  a5 {[%clk 0:01:09]} 17. Nc6 {[%clk 0:00:49]}  Bxc6 {[%clk 0:01:09]} 18. dxc6 {[%clk 0:00:50]}  e4 {[%clk 0:01:09]} 19. f3 {[%clk 0:00:40]}  Qxc6 {[%clk 0:01:03]} 20. fxe4 {[%clk 0:00:40]}  Nfxe4 {[%clk 0:01:00]} 21. Nf3 {[%clk 0:00:25]}  Qd7 {[%clk 0:00:48]} 22. Nd4 {[%clk 0:00:24]}  f5 {[%clk 0:00:32]} 23. Nb5 {[%clk 0:00:24]}  Bf6 {[%clk 0:00:24]} 24. Rae3 {[%clk 0:00:21]}  Rad8 {[%clk 0:00:24]} 25. b3 {[%clk 0:00:19]}  d5 {[%clk 0:00:21]} 26. cxd5 {[%clk 0:00:18]}  Qf7 {[%clk 0:00:15]} 27. d6 {[%clk 0:00:17]}  Kg7 {[%clk 0:00:11]} 28. h3 {[%clk 0:00:16]}  Qd7 {[%clk 0:00:07]} 29. Kh2 {[%clk 0:00:15]}  Qc6 {[%clk 0:00:07]} 30. Ba3 {[%clk 0:00:12]}  Nxd6 {[%clk 0:00:07]} 31. Rxe8 {[%clk 0:00:11]}  Nxe8 {[%clk 0:00:03]} 32. Bxc6 {[%clk 0:00:11]} 1-0


[Site "https://www.chess.com"]

[Event "Titled Tuesday Blitz November 14 Early 2023"]
[White "Yeritsyan, Hayk"]
[Black "Aaditya Dhingra"]
[WhiteFideId "13307320"]
[BlackFideId "25678191"]
[WhiteElo "2432"]
[BlackElo "2600"]
[Result "0-1"]
[Round "5"]
[TimeControl "180+1"]
[Date "2023.11.14"]
[WhiteClock "0:01:36"]
[BlackClock "0:01:23"]
[Board "111"]

1. c4 {[%clk 0:03:00]}  c6 {[%clk 0:02:58]} 2. Nf3 {[%clk 0:02:59]}  Nf6 {[%clk 0:02:57]} 3. b3 {[%clk 0:03:00]}  d5 {[%clk 0:02:53]} 4. Bb2 {[%clk 0:03:00]}  Bg4 {[%clk 0:02:53]} 5. Ne5 {[%clk 0:02:59]}  Bf5 {[%clk 0:02:53]} 6. e3 {[%clk 0:02:58]}  Nbd7 {[%clk 0:02:53]} 7. Be2 {[%clk 0:02:57]}  e6 {[%clk 0:02:51]} 8. O-O {[%clk 0:02:57]}  Nxe5 {[%clk 0:02:51]} 9. Bxe5 {[%clk 0:02:55]}  Bd6 {[%clk 0:02:49]} 10. Bb2 {[%clk 0:02:56]}  O-O {[%clk 0:02:45]} 11. d3 {[%clk 0:02:56]}  e5 {[%clk 0:02:44]} 12. Nd2 {[%clk 0:02:44]}  Qe7 {[%clk 0:02:42]} 13. a3 {[%clk 0:02:43]}  a5 {[%clk 0:02:40]} 14. Qc2 {[%clk 0:02:35]}  Rad8 {[%clk 0:02:36]} 15. e4 {[%clk 0:02:31]}  dxe4 {[%clk 0:02:35]} 16. dxe4 {[%clk 0:02:30]}  Bg6 {[%clk 0:02:35]} 17. Bf3 {[%clk 0:02:27]}  Bc5 {[%clk 0:02:34]} 18. Rfd1 {[%clk 0:02:26]}  Rd7 {[%clk 0:02:21]} 19. Nf1 {[%clk 0:02:25]}  Rxd1 {[%clk 0:02:18]} 20. Qxd1 {[%clk 0:02:15]}  Bxe4 {[%clk 0:02:17]} 21. Ng3 {[%clk 0:02:11]}  Bg6 {[%clk 0:02:00]} 22. Qe2 {[%clk 0:02:10]}  Re8 {[%clk 0:01:59]} 23. h4 {[%clk 0:02:07]}  h6 {[%clk 0:01:58]} 24. h5 {[%clk 0:02:07]}  Bh7 {[%clk 0:01:57]} 25. Ne4 {[%clk 0:01:59]}  Bxe4 {[%clk 0:01:53]} 26. Bxe4 {[%clk 0:02:00]}  Bd4 {[%clk 0:01:51]} 27. Re1 {[%clk 0:01:54]}  Nxe4 {[%clk 0:01:49]} 28. Bxd4 {[%clk 0:01:53]}  exd4 {[%clk 0:01:48]} 29. f3 {[%clk 0:01:54]}  d3 {[%clk 0:01:43]} 30. Qxd3 {[%clk 0:01:47]}  Qc5+ {[%clk 0:01:42]} 31. Kh2 {[%clk 0:01:42]}  Qxh5+ {[%clk 0:01:39]} 32. Kg1 {[%clk 0:01:43]}  Qc5+ {[%clk 0:01:38]} 33. Kh2 {[%clk 0:01:43]}  Qd6+ {[%clk 0:01:36]} 34. Qxd6 {[%clk 0:01:41]}  Nxd6 {[%clk 0:01:37]} 35. Rd1 {[%clk 0:01:41]}  Re6 {[%clk 0:01:30]} 36. c5 {[%clk 0:01:40]}  Nf5 {[%clk 0:01:27]} 37. Rd8+ {[%clk 0:01:40]}  Kh7 {[%clk 0:01:26]} 38. Rd7 {[%clk 0:01:41]}  Re7 {[%clk 0:01:25]} 39. Rd3 {[%clk 0:01:42]}  Re3 {[%clk 0:01:23]} 40. Rxe3 {[%clk 0:01:37]}  Nxe3 {[%clk 0:01:24]} 41. g3 {[%clk 0:01:36]}  Kg6 {[%clk 0:01:23]} 0-1


[Site "https://www.chess.com"]